fUSD/lending_fUSD_20250923
["ID","MTS","AMOUNT","RATE_DAILY","PERIOD"]
[387224411,1758661843268,-500.0,0.00024657,3]
[387224412,1758661843278,-500.0,0.00024657,3]
[387224413,1758661843287,-500.0,0.00024657,3]
[387224414,1758661843297,-500.0,0.00024657,3]
[387224415,1758661843308,-500.0,0.00024657,3]
[387224416,1758661843317,-500.0,0.00024657,3]
[387224417,1758661843327,-500.0,0.00024657,3]
[387224418,1758661843337,-500.0,0.00024657,3]
[387224419,1758661843346,-500.0,0.00024657,3]
[387224420,1758661843356,-243.83928864,0.00024657,3]
[387224421,1758661843366,-570.2,0.00024657,3]
[387224422,1758661843376,-400.0,0.00024657,3]
[387224423,1758661843385,-400.0,0.00024657,3]
[387224424,1758661843395,-400.0,0.00024657,3]
[387224425,1758661843406,-485.45,0.00024657,3]
[387224427,1758661843416,-400.0,0.00024657,3]
[387224429,1758661843426,-400.0,0.00024657,3]
[387224431,1758661843435,-400.0,0.00024657,3]
[387224433,1758661843444,-473.1,0.00024657,3]
[387224435,1758661843454,-400.0,0.00024657,3]
[387224437,1758661843463,-400.0,0.00024657,3]
[387224476,1758661843706,-400.0,0.00024657,3]
[387224478,1758661843717,-418.81,0.00024657,3]
[387224480,1758661843726,-754.29,0.00024657,3]
[387224483,1758661843736,-400.0,0.00024657,3]
[387224484,1758661843745,-400.0,0.00024657,3]
[387224487,1758661843755,-400.0,0.00024657,3]
[387224489,1758661843764,-400.0,0.00024657,3]
[387224491,1758661843774,-400.0,0.00024657,3]
[387224493,1758661843783,-400.0,0.00024657,3]
[387224495,1758661843793,-400.0,0.00024657,3]
[387224497,1758661843802,-463.59,0.00024657,3]
[387224499,1758661843813,-400.0,0.00024657,3]
[387224500,1758661843822,-400.0,0.00024657,3]
[387224501,1758661843832,-400.0,0.00024657,3]
[387224502,1758661843841,-400.0,0.00024657,3]
[387224503,1758661843850,-400.0,0.00024657,3]
[387224504,1758661843860,-674.38,0.00024657,3]
[387224505,1758661843869,-498.91,0.00024657,3]
[387224506,1758661843878,-678.32,0.00024657,3]
[387224507,1758661843888,-416.93,0.00024657,3]
[387224508,1758661843897,-400.0,0.00024657,3]
[387224509,1758661843907,-400.0,0.00024657,3]
[387224510,1758661843916,-600.71,0.00024657,3]
[387224511,1758661843926,-400.0,0.00024657,3]
[387224512,1758661843935,-400.0,0.00024657,3]
[387224513,1758661843944,-400.0,0.00024657,3]
[387224514,1758661843954,-419.16,0.00024657,3]
[387224515,1758661843963,-400.0,0.00024657,3]
[387224516,1758661843973,-400.0,0.00024657,3]
[387224517,1758661843982,-517.24,0.00024657,3]
[387224518,1758661843991,-833.91,0.00024657,3]
[387224519,1758661844001,-400.0,0.00024657,3]
[387224520,1758661844010,-400.0,0.00024657,3]
[387224521,1758661844021,-518.87,0.00024657,3]
[387224522,1758661844030,-400.0,0.00024657,3]
[387224523,1758661844040,-400.0,0.00024657,3]
[387224524,1758661844049,-400.0,0.00024657,3]
[387224525,1758661844058,-400.0,0.00024657,3]
[387224526,1758661844067,-400.0,0.00024657,3]
[387224527,1758661844077,-400.0,0.00024657,2]
[387224528,1758661844087,-400.0,0.00024657,3]
[387224529,1758661844096,-400.0,0.00024657,3]
[387224530,1758661844106,-400.0,0.00024657,3]
[387224531,1758661844115,-1067.95,0.00024657,3]
[387224532,1758661844125,-1023.45,0.00024657,3]
[387224533,1758661844134,-400.0,0.00024657,3]
[387224534,1758661844144,-413.6621396,0.00024657,3]
[387224535,1758661844153,-417.91020931,0.00024657,3]
[387224536,1758661844163,-400.0,0.00024657,3]
[387224537,1758661844172,-408.25360252,0.00024657,3]
[387224538,1758661844181,-400.0,0.00024657,3]
[387224539,1758661844191,-400.27,0.00024657,3]
[387224540,1758661844201,-400.0,0.00024657,3]
[387224541,1758661844210,-156.88807027,0.00024657,3]
[387224542,1758661844219,-300.94482065,0.00024657,3]
[387224543,1758661844229,-400.0,0.00024657,3]
[387224544,1758661844238,-400.0,0.00024657,3]
[387224545,1758661844247,-226.8826824,0.00024657,3]
[387224546,1758661844257,-400.0,0.00024657,3]
[387224547,1758661844267,-400.0,0.00024657,3]
[387224548,1758661844276,-400.0,0.00024657,3]
[387224549,1758661844286,-400.0,0.00024657,3]
[387224550,1758661844295,-400.0,0.00024657,3]
[387224551,1758661844305,-400.0,0.00024657,3]
[387224552,1758661844314,-400.0,0.00024657,3]
[387224553,1758661844323,-400.0,0.00024657,3]
[387224554,1758661844332,-400.0,0.00024657,3]
[387224555,1758661844342,-500.0,0.00024657,2]
[387224556,1758661844351,-400.0,0.00024657,3]
[387224557,1758661844362,-400.0,0.00024657,3]
[387224558,1758661844372,-420.88,0.00024657,3]
[387224559,1758661844381,-400.0,0.00024657,3]
[387224560,1758661844390,-400.0,0.00024657,3]
[387224561,1758661844399,-400.0,0.00024657,3]
[387224562,1758661844408,-400.0,0.00024657,3]
[387224563,1758661844418,-400.0,0.00024657,3]
[387224564,1758661844427,-732.07,0.00024657,3]
[387224565,1758661844436,-400.0,0.00024657,3]
[387224566,1758661844445,-400.0,0.00024657,3]
[387224567,1758661844456,-400.0,0.00024657,3]
[387224568,1758661844465,-1308.26,0.00024657,3]
[387224569,1758661844475,-400.0,0.00024657,2]
[387224570,1758661844484,-400.0,0.00024657,3]
[387224571,1758661844493,-400.0,0.00024657,3]
[387224572,1758661844502,-400.0,0.00024657,3]
[387224573,1758661844511,-400.0,0.00024657,3]
[387224574,1758661844521,-400.0,0.00024657,3]
[387224575,1758661844530,-400.0,0.00024657,3]
[387224576,1758661844539,-400.0,0.00024657,3]
[387224577,1758661844549,-197.56831092,0.00024657,3]
[387224578,1758661844558,-400.0,0.00024657,3]
[387224579,1758661844567,-400.0,0.00024657,3]
[387224580,1758661844578,-400.0,0.00024657,3]
[387224581,1758661844588,-400.0,0.00024657,3]
[387224582,1758661844597,-533.44,0.00024657,3]
[387224583,1758661844607,-152.59554882,0.00024657,3]
[387224584,1758661844618,-480.74603889,0.00024657,3]
[387224585,1758661844628,-400.0,0.00024657,3]
[387224586,1758661844637,-400.0,0.00024657,3]
[387224587,1758661844647,-400.0,0.00024657,3]
[387224588,1758661844659,-400.0,0.00024657,3]
[387224589,1758661844669,-400.0,0.00024657,3]
[387224590,1758661844679,-656.36,0.00024657,3]
[387224591,1758661844688,-401.50301166,0.00024657,3]
[387224592,1758661844698,-536.17,0.00024657,3]
[387224593,1758661844707,-400.0,0.00024657,3]
[387224594,1758661844716,-371.22,0.00024657,3]
[387224595,1758661844726,-400.9118099,0.00024657,3]
[387224596,1758661844735,-400.0,0.00024657,3]
[387224597,1758661844745,-1334.81,0.00024657,3]
[387224598,1758661844754,-400.0,0.00024657,3]
[387224599,1758661844764,-255.46716271,0.00024657,3]
[387224600,1758661844773,-400.0,0.00024657,3]
[387224601,1758661844783,-400.0,0.00024657,3]
[387224602,1758661844793,-400.0,0.00024657,3]
[387224603,1758661844802,-400.0,0.00024657,3]
[387224604,1758661844811,-400.0,0.00024657,3]
[387224605,1758661844820,-400.0,0.00024657,3]
[387224606,1758661844830,-400.0,0.00024657,3]
[387224607,1758661844839,-400.0,0.00024657,3]
[387224608,1758661844849,-400.0,0.00024657,3]
[387224609,1758661844858,-400.0,0.00024657,3]
[387224610,1758661844867,-1129.63,0.00024657,3]
[387224611,1758661844876,-400.0,0.00024657,3]
[387224612,1758661844886,-400.0,0.00024657,3]
[387224613,1758661844895,-400.0,0.00024657,3]
[387224614,1758661844905,-400.0,0.00024657,3]
[387224615,1758661844915,-279.86102626,0.00024657,3]
[387224616,1758661844925,-605.77,0.00024657,3]
[387224617,1758661844934,-402.71637947,0.00024657,3]
[387224618,1758661844943,-581.82,0.00024657,3]
[387224619,1758661844953,-400.0,0.00024657,3]
[387224620,1758661844962,-591.24,0.00024657,3]
[387224621,1758661844973,-661.17,0.00024657,3]
[387224622,1758661844982,-400.0,0.00024657,3]
[387224623,1758661844993,-400.0,0.00024657,3]
[387224624,1758661845002,-412.87072781,0.00024657,3]
[387224625,1758661845011,-400.0,0.00024657,3]
[387224626,1758661845021,-632.53,0.00024657,3]
[387224627,1758661845030,-400.0,0.00024657,3]
[387224628,1758661845039,-400.0,0.00024657,3]
[387224629,1758661845049,-400.0,0.00024657,3]
[387224630,1758661845058,-375.94382914,0.00024657,3]
[387224631,1758661845067,-1030.73,0.00024657,3]
[387224632,1758661845077,-1332.78,0.00024657,3]
[387224633,1758661845087,-350.26456877,0.00024657,3]
[387224634,1758661845096,-400.0,0.00024657,3]
[387224635,1758661845106,-400.0,0.00024657,3]
[387224636,1758661845115,-598.46,0.00024657,3]
[387224637,1758661845125,-400.0,0.00024657,3]
[387224638,1758661845135,-400.0,0.00024657,3]
[387224639,1758661845145,-400.0,0.00024657,3]
[387224640,1758661845155,-610.82,0.00024657,3]
[387224641,1758661845165,-634.0,0.00024657,3]
[387224642,1758661845174,-400.0,0.00024657,3]
[387224643,1758661845184,-510.73307401,0.00024657,3]
[387224644,1758661845194,-400.0,0.00024657,3]
[387224645,1758661845205,-400.0,0.00024657,3]
[387224646,1758661845214,-500.0,0.00024657,3]
[387224647,1758661845224,-500.0,0.00024657,3]
[387224648,1758661845233,-500.0,0.00024657,3]
[387224649,1758661845242,-500.0,0.00024657,3]
[387224650,1758661845252,-500.0,0.00024657,3]
[387224651,1758661845261,-500.0,0.00024657,3]
[387224652,1758661845271,-500.0,0.00024657,3]
[387224653,1758661845280,-500.0,0.00024657,3]
[387224654,1758661845290,-500.0,0.00024657,3]
[387224655,1758661845300,-239.73114581,0.00024657,3]
[387224656,1758661845309,-400.0,0.00024657,3]
[387224657,1758661845319,-467.0,0.00024657,3]
[387224658,1758661845328,-400.0,0.00024657,3]
[387224659,1758661845338,-401.17977913,0.00024657,3]
[387224660,1758661845347,-400.0,0.00024657,3]
[387224661,1758661845357,-400.0,0.00024657,3]
[387224662,1758661845366,-400.0,0.00024657,3]
[387224663,1758661845376,-400.0,0.00024657,3]
[387224664,1758661845385,-400.0,0.00024657,3]
[387224665,1758661845394,-669.95,0.00024657,3]
[387224666,1758661845403,-401.96378261,0.00024657,3]
[387224667,1758661845413,-400.0,0.00024657,3]
[387224668,1758661845422,-487.48,0.00024657,3]
[387224669,1758661845432,-400.0,0.00024657,3]
[387224670,1758661845441,-494.25,0.00024657,3]
[387224671,1758661845452,-563.16,0.00024657,3]
[387224672,1758661845461,-161.34756593,0.00024657,3]
[387224673,1758661845470,-400.0,0.00024657,3]
[387224674,1758661845480,-428.37,0.00024657,3]
[387224675,1758661845489,-400.0,0.00024657,3]
[387224676,1758661845498,-400.0,0.00024657,3]
[387224677,1758661845508,-400.0,0.00024657,3]
[387224678,1758661845517,-736.46,0.00024657,3]
[387224679,1758661845527,-400.0,0.00024657,3]
[387224680,1758661845537,-682.09,0.00024657,3]
[387224681,1758661845547,-400.0,0.00024657,3]
[387224682,1758661845556,-400.0,0.00024657,3]
[387224683,1758661845566,-400.0,0.00024657,3]
[387224684,1758661845577,-278.7506636,0.00024657,3]
[387224685,1758661845587,-400.0,0.00024657,3]
[387224686,1758661845596,-1508.86,0.00024657,3]
[387224687,1758661845606,-400.0,0.00024657,3]
[387224688,1758661845616,-547.76,0.00024657,3]
[387224689,1758661845626,-400.0,0.00024657,3]
[387224690,1758661845635,-792.54,0.00024657,3]
[387224691,1758661845645,-400.0,0.00024657,3]
[387224692,1758661845657,-400.0,0.00024657,3]
[387224693,1758661845666,-151.0,0.00024657,7]
[387224694,1758661845676,-151.0,0.00024657,7]
[387224695,1758661845685,-274.252428,0.00024657,7]
[387224696,1758661845695,-400.0,0.00024657,3]
[387224697,1758661845705,-400.0,0.00024657,3]
[387224698,1758661845714,-415.25201859,0.00024657,3]
[387224699,1758661845724,-400.0,0.00024657,3]
[387224700,1758661845734,-400.0,0.00024657,3]
[387224701,1758661845744,-400.0,0.00024657,3]
[387224702,1758661845753,-400.0,0.00024657,3]
[387224703,1758661845763,-400.0,0.00024657,3]
[387224704,1758661845772,-898.75,0.00024657,3]
[387224705,1758661845782,-400.0,0.00024657,3]
[387224706,1758661845791,-400.0,0.00024657,3]
[387224707,1758661845801,-401.27887755,0.00024657,3]
[387224708,1758661845810,-400.0,0.00024657,3]
[387224709,1758661845821,-400.72889377,0.00024657,3]
[387224710,1758661845831,-747.55,0.00024657,3]
[387224711,1758661845841,-400.0,0.00024657,3]
[387224712,1758661845851,-653.02,0.00024657,3]
[387224713,1758661845862,-401.61577223,0.00024657,3]
[387224714,1758661845871,-400.0,0.00024657,3]
[387224715,1758661845881,-400.0,0.00024657,3]
[387224716,1758661845891,-400.0,0.00024657,3]
[387224717,1758661845901,-400.0,0.00024657,3]
[387224718,1758661845911,-400.0,0.00024657,3]
[387224719,1758661845921,-400.0,0.00024657,3]
[387224720,1758661845931,-500.000681,0.00024657,3]
[387224721,1758661845940,-400.0,0.00024657,3]
[387224722,1758661845950,-1079.41,0.00024657,3]
[387224723,1758661845959,-400.0,0.00024657,3]
[387224724,1758661845969,-400.0,0.00024657,3]
[387224725,1758661845978,-400.0,0.00024657,3]
[387224726,1758661845988,-400.0,0.00024657,3]
[387224727,1758661845997,-400.0,0.00024657,3]
[387224728,1758661846007,-1026.02,0.00024657,3]
[387224729,1758661846016,-400.0,0.00024657,3]
[387224730,1758661846025,-400.0,0.00024657,3]
[387224731,1758661846035,-401.02047679,0.00024657,3]
[387224732,1758661846044,-400.0,0.00024657,3]
[387224733,1758661846053,-403.56450427,0.00024657,3]
[387224734,1758661846062,-400.0,0.00024657,3]
[387224735,1758661846072,-401.26017584,0.00024657,3]
[387224736,1758661846081,-400.0,0.00024657,3]
[387224737,1758661846091,-400.0,0.00024657,3]
[387224738,1758661846100,-690.37,0.00024657,3]
[387224739,1758661846109,-401.17572993,0.00024657,3]
[387224740,1758661846118,-400.0,0.00024657,3]
[387224741,1758661846128,-400.0,0.00024657,3]
[387224742,1758661846137,-400.0,0.00024657,3]
[387224743,1758661846147,-400.0,0.00024657,3]
[387224744,1758661846157,-400.0,0.00024657,3]
[387224745,1758661846167,-402.72745651,0.00024657,3]
[387224746,1758661846176,-403.13000313,0.00024657,3]
[387224747,1758661846186,-1389.27,0.00024657,3]
[387224748,1758661846195,-400.5,0.00024657,3]
[387224749,1758661846204,-752.36,0.00024657,3]
[387224750,1758661846214,-548.7,0.00024657,3]
[387224751,1758661846223,-752.36,0.00024657,3]
[387224752,1758661846233,-400.0,0.00024657,3]
[387224753,1758661846242,-752.36,0.00024657,3]
[387224754,1758661846251,-752.36,0.00024657,3]
[387224755,1758661846260,-752.36,0.00024657,3]
[387224756,1758661846270,-752.36,0.00024657,3]
[387224757,1758661846279,-511.0,0.00024657,3]
[387224758,1758661846289,-752.36,0.00024657,3]
[387224759,1758661846298,-752.36,0.00024657,3]
[387224761,1758661846307,-752.36,0.00024657,3]
[387224763,1758661846317,-752.36,0.00024657,3]
[387224764,1758661846326,-752.36,0.00024657,3]
[387224765,1758661846335,-405.96974686,0.00024657,3]
[387224766,1758661846345,-752.36,0.00024657,3]
[387224767,1758661846355,-752.36,0.00024657,3]
[387224768,1758661846364,-151.0,0.00024657,7]
[387224769,1758661846373,-752.36,0.00024657,3]
[387224770,1758661846382,-752.36,0.00024657,3]
[387224771,1758661846391,-151.0,0.00024657,7]
[387224772,1758661846401,-151.0,0.00024657,7]
[387224773,1758661846410,-152.447331,0.00024657,7]
[387224775,1758661846420,-400.0,0.00024657,3]
[387224777,1758661846430,-400.0,0.00024657,3]
[387224778,1758661846439,-417.65,0.00024657,3]
[387224780,1758661846449,-400.0,0.00024657,3]
[387224781,1758661846459,-151.0,0.00024657,7]
[387224782,1758661846469,-575.09,0.00024657,3]
[387224785,1758661846478,-400.0,0.00024657,3]
[387224787,1758661846488,-400.0,0.00024657,3]
[387224789,1758661846499,-409.50181996,0.00024657,3]
[387224791,1758661846516,-472.91951361,0.00024657,3]
[387224793,1758661846526,-1081.13,0.00024657,3]
[387224794,1758661846535,-797.53,0.00024657,3]
[387224795,1758661846545,-400.0,0.00024657,3]
[387224796,1758661846554,-400.0,0.00024657,3]
[387224797,1758661846563,-400.0,0.00024657,3]
[387224798,1758661846572,-400.0,0.00024657,3]
[387224799,1758661846585,-400.0,0.00024657,3]
[387224800,1758661846594,-400.0,0.00024657,3]
[387224801,1758661846604,-1043.43,0.00024657,3]
[387224802,1758661846613,-289.834915,0.00024657,7]
[387224803,1758661846623,-400.0,0.00024657,3]
[387224804,1758661846632,-400.0,0.00024657,3]
[387224805,1758661846641,-408.12371052,0.00024657,3]
[387224806,1758661846650,-152.356674,0.00024657,7]
[387224807,1758661846661,-400.0,0.00024657,3]
[387224808,1758661846671,-480.53,0.00024657,3]
[387224809,1758661846681,-404.94600781,0.00024657,3]
[387224810,1758661846690,-400.0,0.00024657,3]
[387224811,1758661846699,-400.0,0.00024657,2]
[387224812,1758661846708,-400.0,0.00024657,3]
[387224813,1758661846718,-400.0,0.00024657,3]
[387224814,1758661846727,-400.0,0.00024657,3]
[387224815,1758661846737,-400.0,0.00024657,3]
[387224816,1758661846746,-400.0,0.00024657,3]
[387224817,1758661846756,-400.0,0.00024657,3]
[387224818,1758661846765,-574.03,0.00024657,3]
[387224819,1758661846774,-400.0,0.00024657,3]
[387224820,1758661846784,-939.33,0.00024657,3]
[387224821,1758661846793,-400.0,0.00024657,3]
[387224822,1758661846802,-651.1,0.00024657,3]
[387224823,1758661846811,-402.53302054,0.00024657,3]
[387224824,1758661846821,-483.63,0.00024657,3]
[387224825,1758661846830,-400.0,0.00024657,3]
[387224826,1758661846840,-400.0,0.00024657,3]
[387224827,1758661846850,-443.6,0.00024657,3]
[387224828,1758661846859,-400.0,0.00024657,3]
[387224829,1758661846869,-400.0,0.00024657,3]
[387224830,1758661846878,-400.0,0.00024657,3]
[387224831,1758661846887,-400.0,0.00024657,3]
[387224832,1758661846897,-400.0,0.00024657,3]
[387224833,1758661846906,-400.0,0.00024657,3]
[387224834,1758661846916,-151.0,0.00024657,7]
[387224835,1758661846926,-153.243082,0.00024657,7]
[387224836,1758661846937,-561.36,0.00024657,3]
[387224837,1758661846948,-400.0,0.00024657,3]
[387224838,1758661846957,-401.49341765,0.00024657,3]
[387224839,1758661846967,-400.0,0.00024657,3]
[387224840,1758661846977,-400.0,0.00024657,3]
[387224841,1758661846988,-724.42,0.00024657,3]
[387224842,1758661846999,-400.0,0.00024657,3]
[387224843,1758661847008,-151.0,0.00024657,7]
[387224844,1758661847017,-151.0,0.00024657,7]
[387224845,1758661847028,-400.0,0.00024657,3]
[387224846,1758661847039,-197.0,0.00024657,7]
[387224847,1758661847048,-160.344365,0.00024657,7]
[387224848,1758661847059,-400.0,0.00024657,3]
[387224849,1758661847069,-467.79,0.00024657,3]
[387224850,1758661847079,-400.0,0.00024657,3]
[387224851,1758661847089,-522.87,0.00024657,3]
[387224852,1758661847100,-400.0,0.00024657,3]
[387224853,1758661847110,-469.31,0.00024657,3]
[387224854,1758661847120,-1481.44,0.00024657,3]
[387224855,1758661847130,-1435.9,0.00024657,3]
[387224856,1758661847139,-400.0,0.00024657,3]
[387224857,1758661847149,-400.0,0.00024657,3]
[387224858,1758661847160,-400.0,0.00024657,3]
[387224859,1758661847169,-503.14,0.00024657,3]
[387224860,1758661847178,-400.0,0.00024657,3]
[387224861,1758661847188,-929.34,0.00024657,3]
[387224862,1758661847198,-400.0,0.00024657,3]
[387224863,1758661847207,-400.0,0.00024657,3]
[387224864,1758661847216,-400.0,0.00024657,3]
[387224865,1758661847226,-154.311261,0.00024657,7]
[387224866,1758661847235,-400.0,0.00024657,3]
[387224867,1758661847244,-400.0,0.00024657,3]
[387224868,1758661847253,-400.0,0.00024657,3]
[387224869,1758661847262,-400.0,0.00024657,3]
[387224870,1758661847504,-731.98,0.00024657,3]
[387224871,1758661847514,-400.0,0.00024657,3]
[387224872,1758661847523,-650.15,0.00024657,3]
[387224873,1758661847533,-764.72,0.00024657,3]
[387224874,1758661847542,-400.0,0.00024657,3]
[387224875,1758661847552,-400.0,0.00024657,3]
[387224876,1758661847561,-400.0,0.00024657,3]
[387224877,1758661847571,-436.15,0.00024657,3]
[387224878,1758661847584,-400.0,0.00024657,3]
[387224879,1758661847594,-151.0,0.00024657,7]
[387224880,1758661847604,-400.0,0.00024657,3]
[387224881,1758661847616,-711.96,0.00024657,3]
[387224882,1758661847627,-400.0,0.00024657,3]
[387224883,1758661847637,-276.267771,0.00024657,7]
[387224884,1758661847646,-400.0,0.00024657,3]
[387224885,1758661847657,-400.0,0.00024657,3]
[387224886,1758661847666,-400.0,0.00024657,3]
[387224887,1758661847676,-151.0,0.00024657,7]
[387224888,1758661847686,-400.0,0.00024657,3]
[387224889,1758661847695,-151.0,0.00024657,7]
[387224890,1758661847707,-151.0,0.00024657,7]
[387224891,1758661847717,-151.0,0.00024657,7]
[387224892,1758661847726,-229.984935,0.00024657,7]
[387224893,1758661847736,-400.0,0.00024657,3]
[387224894,1758661847746,-151.0,0.00024657,7]
[387224895,1758661847755,-400.0,0.00024657,3]
[387224896,1758661847765,-400.0,0.00024657,3]
[387224897,1758661847774,-151.0,0.00024657,7]
[387224898,1758661847784,-151.0,0.00024657,7]
[387224899,1758661847793,-894.7,0.00024657,3]
[387224900,1758661847803,-400.0,0.00024657,3]
[387224901,1758661847812,-151.0,0.00024657,7]
[387224902,1758661847823,-151.0,0.00024657,7]
[387224903,1758661847833,-154.601404,0.00024657,7]
[387224904,1758661847843,-500.0,0.00024657,3]
[387224905,1758661847854,-151.0,0.00024657,7]
[387224906,1758661847863,-1519.84,0.00024657,3]
[387224907,1758661847873,-151.0,0.00024657,7]
[387224908,1758661847882,-504.18235704,0.00024657,3]
[387224909,1758661847891,-151.0,0.00024657,7]
[387224910,1758661847903,-151.0,0.00024657,7]
[387224911,1758661847913,-151.0,0.00024657,7]
[387224912,1758661847922,-274.553739,0.00024657,7]
[387224913,1758661847931,-400.0,0.00024657,3]
[387224914,1758661847940,-400.0,0.00024657,3]
[387224915,1758661847950,-400.0,0.00024657,3]
[387224916,1758661847961,-400.0,0.00024657,3]
[387224917,1758661847971,-962.32,0.00024657,3]
[387224918,1758661847981,-400.0,0.00024657,3]
[387224919,1758661847990,-400.0,0.00024657,3]
[387224920,1758661847999,-400.0,0.00024657,3]
[387224921,1758661848009,-400.0,0.00024657,3]
[387224922,1758661848018,-1008.67,0.00024657,3]
[387224923,1758661848028,-583.14,0.00024657,3]
[387224924,1758661848038,-400.0,0.00024657,3]
[387224925,1758661848047,-400.0,0.00024657,3]
[387224926,1758661848056,-400.0,0.00024657,3]
[387224927,1758661848066,-400.0,0.00024657,3]
[387224928,1758661848075,-484.81,0.00024657,3]
[387224929,1758661848086,-400.0,0.00024657,2]
[387224930,1758661848095,-586.75,0.00024657,3]
[387224931,1758661848105,-410.95,0.00024657,3]
[387224932,1758661848114,-249.60608086,0.00024657,3]
[387224933,1758661848124,-1568.09,0.00024657,3]
[387224934,1758661848133,-1471.33,0.00024657,3]
[387224935,1758661848142,-494.88,0.00024657,3]
[387224936,1758661848152,-500.0,0.00024657,3]
[387224937,1758661848162,-500.0,0.00024657,3]
[387224938,1758661848171,-400.0,0.00024657,3]
[387224939,1758661848180,-517.67875002,0.00024657,3]
[387224940,1758661848189,-477.94,0.00024657,3]
[387224941,1758661848199,-400.0,0.00024657,3]
[387224942,1758661848211,-400.0,0.00024657,3]
[387224943,1758661848220,-766.03,0.00024657,3]
[387224944,1758661848230,-589.79,0.00024657,3]
[387224945,1758661848240,-400.0,0.00024657,3]
[387224946,1758661848249,-400.0,0.00024657,3]
[387224947,1758661848259,-400.0,0.00024657,3]
[387224948,1758661848268,-400.74,0.00024657,3]
[387224949,1758661848277,-151.0,0.00024657,7]
[387224950,1758661848286,-400.0,0.00024657,3]
[387224951,1758661848296,-464.27,0.00024657,3]
[387224952,1758661848305,-400.0,0.00024657,3]
[387224953,1758661848314,-400.0,0.00024657,3]
[387224954,1758661848324,-1054.98,0.00024657,3]
[387224955,1758661848333,-400.0,0.00024657,3]
[387224956,1758661848343,-400.0,0.00024657,3]
[387224957,1758661848352,-400.0,0.00024657,3]
[387224958,1758661848379,-500.0,0.00024657,3]
[387224959,1758661848389,-500.0,0.00024657,3]
[387224960,1758661848399,-500.0,0.00024657,3]
[387224961,1758661848408,-500.0,0.00024657,3]
[387224962,1758661848418,-728.05,0.00024657,3]
[387224963,1758661848427,-500.0,0.00024657,3]
[387224964,1758661848436,-500.0,0.00024657,3]
[387224965,1758661848445,-500.0,0.00024657,3]
[387224966,1758661848454,-500.0,0.00024657,3]
[387224967,1758661848464,-1207.15,0.00024657,3]
[387224968,1758661848473,-500.0,0.00024657,3]
[387224969,1758661848482,-500.0,0.00024657,3]
[387224970,1758661848492,-400.0,0.00024657,3]
[387224971,1758661848501,-500.0,0.00024657,3]
[387224972,1758661848511,-500.0,0.00024657,3]
[387224973,1758661848520,-400.0,0.00024657,3]
[387224974,1758661848529,-500.0,0.00024657,3]
[387224975,1758661848538,-400.0,0.00024657,3]
[387224976,1758661848548,-400.0,0.00024657,3]
[387224977,1758661848557,-400.0,0.00024657,3]